bitfinex-derivatives/quotes_BNBF0:USTF0_20260221
["timestamp","ask_amount","ask_price","bid_price","bid_amount"]
[1771690085380,1.16766678,625.65,624.61,1.59333197]
[1771690086185,1.16766678,625.64,624.62,1.59333197]
[1771690086381,1.16766678,625.65,624.61,1.59333197]
[1771690087283,1.16766678,625.66,624.6,1.59333197]
[1771690088182,1.16766678,625.65,624.61,1.59333197]
[1771690088382,1.16766678,625.66,624.6,1.59333197]
[1771690088585,1.16766678,625.67,624.61,1.59333197]
[1771690088784,1.16766678,625.72,624.66,1.59333197]
[1771690089486,1.16766678,625.72,624.65,1.59333197]
[1771690090190,1.16766678,625.72,624.66,1.59333197]
[1771690090486,3.927838,626.4,624.66,1.59333197]
[1771690090487,1.16766678,625.74,624.66,1.59333197]
[1771690091186,1.16766678,625.74,624.65,1.59333197]
[1771690092286,1.16766678,625.75,624.64,1.59333197]
[1771690092483,1.16766678,625.75,624.53,2.38999795]
[1771690092484,1.16766678,625.77,624.65,1.59333197]
[1771690094287,1.16766678,625.77,624.53,2.38999795]
[1771690094288,1.16766678,625.78,624.64,1.59333197]
[1771690095486,1.16766678,625.78,624.63,1.59333197]
[1771690096288,1.16766678,625.79,624.63,1.59333197]
[1771690097588,1.16766678,625.8,624.64,1.59333197]
[1771690098092,1.16766678,625.79,624.64,1.59333197]
[1771690098292,1.16766678,625.8,624.63,1.59333197]
[1771690099092,1.16766678,625.8,624.64,1.867]
[1771690099289,1.16766678,625.79,624.64,3.46033197]
[1771690099492,1.16766678,625.8,624.64,1.867]
[1771690101192,1.16766678,625.79,624.64,3.46033197]
[1771690104194,1.16766678,625.78,624.65,1.59333197]
[1771690104393,1.16766678,625.79,624.65,1.59333197]
[1771690105194,1.16766678,625.78,624.65,1.59333197]
[1771690108197,1.16766678,625.77,624.65,1.59333197]
[1771690108395,1.16766678,625.77,624.66,1.59333197]
[1771690109294,1.16766678,625.76,624.66,1.59333197]
[1771690110299,1.16766678,625.76,624.67,1.59333197]
[1771690111401,1.16766678,625.75,624.68,1.59333197]
[1771690112200,1.16766678,625.74,624.69,1.59333197]
[1771690112398,1.16766678,625.73,624.69,1.59333197]
[1771690113204,1.16766678,625.72,624.7,1.59333197]
[1771690113401,1.16766678,625.72,624.71,1.59333197]
[1771690115308,1.16766678,625.71,624.72,1.59333197]
[1771690117310,1.16766678,625.71,624.73,1.59333197]
[1771690118212,1.16766678,625.74,624.78,1.59333197]
[1771690118509,1.16766678,625.77,624.81,1.59333197]
[1771690119007,1.16766678,625.78,624.81,1.59333197]
[1771690119212,1.16766678,625.78,624.82,1.59333197]
[1771690120212,1.16766678,625.77,624.82,1.59333197]
[1771690121214,1.16766678,625.77,624.83,1.59333197]
[1771690122112,1.16766678,625.76,624.83,1.59333197]
[1771690122313,1.16766678,625.76,624.84,1.59333197]
[1771690123114,1.16766678,625.77,624.85,1.59333197]
[1771690123311,1.16766678,625.76,624.86,1.59333197]
[1771690124217,1.16766678,625.75,624.87,1.59333197]
[1771690125117,1.16766678,625.76,624.87,1.59333197]
[1771690126516,1.16766678,625.75,624.88,1.59333197]
[1771690127418,1.16766678,625.74,624.89,1.59333197]
[1771690128320,1.16766678,625.73,624.9,1.59333197]
[1771690129917,1.16766678,625.72,624.9,1.59333197]
[1771690130217,1.16766678,625.72,624.91,1.59333197]
[1771690130421,1.16766678,625.72,624.9,1.59333197]
[1771690131421,1.16766678,625.72,624.91,1.59333197]
[1771690133718,1.16766678,625.72,624.92,1.59333197]
[1771690133918,1.16766678,625.79,624.99,1.59333197]
[1771690134423,1.16766678,625.79,624.98,1.59333197]
[1771690135325,1.16766678,625.8,624.98,1.59333197]
[1771690137028,1.16766678,625.82,624.99,1.59333197]
[1771690138525,1.16766678,625.83,624.99,1.59333197]
[1771690139330,1.16766678,625.84,624.99,1.59333197]
[1771690140330,1.16766678,625.9,625.06,1.59333197]
[1771690140629,1.16766678,626.03,625.19,1.59333197]
[1771690140825,1.16766678,626.06,625.22,1.59333197]
[1771690141226,1.16766678,626.09,625.2,1.59333197]
[1771690142225,1.16766678,626.1,625.18,1.59333197]
[1771690142429,1.16766678,626.1,625.21,1.803]
[1771690143126,1.16766678,626.12,625.21,1.803]
[1771690143525,1.55598548,626.23,625.21,1.803]
[1771690143526,1.16766678,626.05,625.21,1.803]
[1771690143725,1.16766678,626.0,625.21,1.803]
[1771690144225,1.16766678,626.01,625.21,1.803]
[1771690148430,1.16766678,625.98,625.21,1.803]
[1771690149032,1.16766678,625.97,625.21,1.803]
[1771690155636,1.16766678,626.02,625.21,1.803]
[1771690155835,1.16766678,626.03,625.21,1.803]
[1771690157834,1.16766678,626.04,625.21,1.803]
[1771690158736,1.16766678,626.08,625.21,1.803]
[1771690160739,1.16766678,626.09,625.21,1.803]
[1771690160940,1.16766678,626.12,625.21,1.803]
[1771690161239,1.16766678,626.13,625.21,1.803]
[1771690161434,1.55598548,626.24,625.21,1.803]
[1771690161435,1.16766678,626.12,625.21,1.803]
[1771690163137,1.16766678,626.13,625.21,1.803]
[1771690163437,1.16766678,626.12,625.21,1.803]
[1771690164138,1.16766678,626.13,625.21,1.803]
[1771690164437,1.16766678,626.12,625.21,1.803]
[1771690165140,1.16766678,626.13,625.21,1.803]
[1771690167040,1.16766678,626.11,625.21,1.803]
[1771690169842,1.16766678,626.1,625.21,1.803]
[1771690170142,1.16766678,626.07,625.21,1.803]
[1771690171038,1.16766678,626.06,625.21,1.803]
[1771690171337,1.16766678,626.05,625.21,1.803]
[1771690173441,1.16766678,626.05,625.1,1.59333197]
[1771690174342,1.16766678,626.04,625.1,1.59333197]
[1771690175543,1.16766678,626.04,625.11,1.59333197]
[1771690176140,1.16766678,626.02,625.09,1.59333197]
[1771690176439,2.34468133,626.24,625.09,1.59333197]
[1771690176440,1.16766678,626.01,625.09,1.59333197]
[1771690177044,1.16766678,626.01,625.1,1.36]
[1771690177343,1.16766678,626.01,625.1,2.95333197]
[1771690177545,1.16766678,626.0,625.1,1.36]
[1771690178343,1.16766678,625.99,625.1,2.95333197]
[1771690179448,1.16766678,625.99,625.11,1.59333197]
[1771690180145,1.16766678,625.98,625.11,1.59333197]
[1771690181345,1.16766678,625.98,625.12,1.59333197]
[1771690182246,1.16766678,625.97,625.12,1.59333197]
[1771690183349,1.16766678,625.97,625.13,1.59333197]
[1771690184446,1.16766678,625.96,625.14,1.59333197]
[1771690193159,1.16766678,625.95,625.14,1.59333197]
[1771690194161,1.16766678,625.95,625.15,1.59333197]
[1771690196062,1.16766678,625.96,625.16,1.59333197]
[1771690196262,1.16766678,625.96,625.17,1.59333197]
[1771690196461,1.16766678,625.97,625.18,1.59333197]
[1771690196664,1.16766678,626.02,625.23,1.59333197]
[1771690197064,1.16766678,626.03,625.24,1.59333197]
[1771690197259,1.16766678,626.03,625.25,1.59333197]
[1771690197964,1.16766678,626.07,625.28,1.59333197]
[1771690198464,1.16766678,626.09,625.31,1.59333197]
[1771690202467,1.16766678,626.1,625.3,1.59333197]
[1771690204573,1.16766678,626.07,625.27,1.59333197]
[1771690205071,1.16766678,626.08,625.27,1.59333197]
[1771690206270,1.16766678,626.05,625.24,1.59333197]
[1771690212776,1.16766678,626.06,625.24,1.59333197]
[1771690213478,1.16766678,626.07,625.26,1.59333197]
[1771690214575,1.16766678,626.03,625.21,1.59333197]
[1771690214773,1.16766678,626.04,625.23,1.59333197]
[1771690215076,1.16766678,626.1,625.28,1.59333197]
[1771690218284,1.16766678,626.1,625.29,1.436]
[1771690218982,1.16766678,626.11,625.29,3.02933197]
[1771690219181,1.16766678,626.12,625.29,3.02933197]
[1771690220386,1.16766678,626.12,625.29,1.436]
[1771690227289,1.16766678,626.11,625.29,1.436]
[1771690228184,1.16766678,626.1,625.29,1.436]
[1771690228589,1.17320187,626.1,625.29,1.436]
[1771690234089,1.17320187,626.09,625.29,1.436]
[1771690235090,1.17320187,626.09,625.29,3.02933197]
[1771690237293,1.17320187,626.08,625.29,3.02933197]
[1771690238093,1.17320187,626.08,625.3,1.59333197]
[1771690238695,1.17320187,626.07,625.29,3.02933197]
[1771690238893,1.17320187,625.99,625.29,1.436]
[1771690240190,1.17320187,625.98,625.29,1.436]
[1771690244594,1.17320187,625.93,625.29,1.436]
[1771690244898,1.17320187,625.83,625.29,1.436]
[1771690245395,1.17320187,625.84,625.29,1.436]
[1771690246300,1.17320187,625.84,624.93,2.38999795]
[1771690246301,1.17320187,625.86,625.03,1.59333197]
[1771690247400,1.17320187,625.86,624.92,2.38999795]
[1771690247401,1.17320187,625.87,625.02,1.59333197]
[1771690248301,1.17320187,625.87,625.01,1.59333197]
[1771690249297,1.17320187,625.88,625.01,1.59333197]
[1771690249502,1.17320187,625.88,625.02,1.903]
[1771690249897,1.17320187,625.88,625.04,1.59333197]
[1771690250102,1.17320187,625.91,625.04,1.59333197]
[1771690250405,1.17320187,625.91,625.03,1.59333197]
[1771690250604,1.17320187,625.93,625.05,1.59333197]
[1771690251103,1.17320187,625.97,625.09,1.59333197]
[1771690252803,1.17320187,625.99,625.11,1.59333197]
[1771690253105,1.17320187,626.02,625.13,1.59333197]
[1771690257213,1.17320187,626.02,625.14,1.59333197]
[1771690261308,1.55598548,626.14,625.14,1.59333197]
[1771690261309,1.17320187,626.03,625.14,1.59333197]
[1771690261609,1.17320187,626.02,625.14,1.59333197]
[1771690265617,1.17320187,626.01,625.13,1.59333197]
[1771690265818,1.17320187,626.0,625.12,1.59333197]
[1771690266416,1.55598548,626.12,625.02,1.903]
[1771690266417,1.17320187,625.84,625.02,1.903]
[1771690266618,1.17320187,625.76,625.02,1.903]
[1771690267517,1.17320187,625.68,625.02,1.903]
[1771690268319,1.17320187,625.7,625.02,1.903]
[1771690269320,1.17320187,625.76,625.02,1.903]
[1771690270419,1.17320187,625.77,625.02,1.903]
[1771690271321,1.17320187,625.78,625.02,1.903]
[1771690272024,1.17320187,625.79,625.02,1.903]
[1771690272223,1.17320187,625.83,625.02,1.903]
[1771690274525,1.17320187,625.84,625.02,1.903]
[1771690276225,1.17320187,625.85,625.02,1.903]
[1771690276525,1.17320187,625.84,625.02,1.903]
[1771690283329,1.17320187,625.83,625.02,1.903]
[1771690285535,1.17320187,625.83,624.92,0.27821193]
[1771690288334,1.17320187,625.82,624.92,0.27821193]
[1771690289437,1.17320187,625.82,624.93,2.1]
[1771690291140,1.55598548,625.93,624.93,2.1]
[1771690291339,1.16980938,625.82,624.93,2.1]
[1771690293338,1.16980938,625.83,624.93,2.1]
[1771690294239,1.16980938,625.82,624.93,2.1]
[1771690294436,1.16980938,625.83,624.93,2.1]
[1771690297341,1.16980938,625.82,624.93,2.1]
[1771690300342,1.16980938,625.81,624.93,2.1]
[1771690302244,1.16980938,625.8,624.93,2.1]
[1771690304349,1.16980938,625.79,624.93,2.1]
[1771690306553,1.16980938,625.78,624.93,2.1]
[1771690307349,1.16980938,625.77,624.93,2.1]
[1771690308350,1.16980938,625.76,624.93,2.1]
[1771690309250,1.16980938,625.75,624.93,2.1]
[1771690310552,1.16980938,625.73,624.94,1.59333197]
[1771690311451,1.16980938,625.71,624.96,1.59333197]
[1771690313357,1.16980938,625.7,624.97,1.59333197]
[1771690314353,1.16980938,625.69,624.98,1.59333197]
[1771690316352,1.16980938,625.69,624.93,2.1]
[1771690316353,1.16980938,625.68,624.99,1.59333197]
[1771690317156,1.16980938,625.66,624.97,1.59333197]
[1771690317456,1.16980938,625.66,624.98,1.59333197]
[1771690320956,1.16980938,625.65,624.97,1.59333197]
[1771690321355,1.16980938,625.65,624.96,1.59333197]
[1771690323061,1.16980938,625.63,624.94,1.59333197]
[1771690323261,1.16980938,625.57,624.93,2.1]
[1771690324159,1.16980938,625.58,624.93,2.1]
[1771690325159,1.16980938,625.59,624.93,2.1]
[1771690325964,1.16980938,625.55,624.93,2.1]
[1771690326260,1.16980938,625.56,624.93,2.1]
[1771690327164,1.16980938,625.57,624.93,2.1]
[1771690328662,1.16980938,625.57,624.79,1.59333197]
[1771690330169,1.16980938,625.58,624.79,1.59333197]
[1771690330467,1.16980938,625.58,624.78,1.59333197]
[1771690331365,1.16980938,625.58,624.79,2.146]
[1771690333169,1.16980938,625.59,624.79,2.146]
[1771690341177,1.16980938,625.6,624.79,2.146]
[1771690341779,1.16980938,625.59,624.79,2.146]
[1771690342281,1.16980938,625.6,624.79,2.146]
[1771690342475,1.16980938,625.6,624.77,0.27827311]
[1771690346283,1.16980938,625.6,624.78,2.095]
[1771690347385,1.16980938,625.57,624.78,2.095]
[1771690347779,2.10477487,625.57,624.78,2.095]
[1771690347984,1.16980938,625.57,624.78,2.095]
[1771690355994,1.16980938,625.56,624.78,2.095]
[1771690356289,1.16980938,625.55,624.78,2.095]
[1771690359094,2.10477487,625.55,624.78,2.095]
[1771690359294,0.93496549,625.54,624.78,2.095]
[1771690359496,0.93496549,625.53,624.78,2.095]
[1771690359799,0.93496549,625.52,624.78,2.095]
[1771690359999,0.93496549,625.51,624.78,2.095]
[1771690360200,0.93496549,625.5,624.78,2.095]
[1771690360401,0.93496549,625.49,624.78,2.095]
[1771690360596,0.93496549,625.48,624.78,2.095]
[1771690360800,0.93496549,625.47,624.78,2.095]
[1771690360997,0.93496549,625.46,624.78,2.095]
[1771690361201,0.93496549,625.45,624.78,2.095]
[1771690361397,0.93496549,625.44,624.78,2.095]
[1771690361597,0.93496549,625.43,624.78,2.095]
[1771690361798,0.93496549,625.42,624.78,2.095]
[1771690362101,0.93496549,625.41,624.78,2.095]
[1771690362300,0.93496549,625.4,624.78,2.095]
[1771690362602,0.93496549,625.39,624.78,2.095]
[1771690362802,0.93496549,625.38,624.78,2.095]
[1771690363002,0.93496549,625.37,624.78,2.095]
[1771690363298,0.93496549,625.36,624.78,2.095]
[1771690363497,0.93496549,625.35,624.78,2.095]
[1771690363699,0.93496549,625.34,624.78,2.095]
[1771690363903,0.93496549,625.33,624.78,2.095]
[1771690364100,1.16980938,625.53,624.78,2.095]
[1771690364402,2.10612495,625.52,624.78,2.095]
[1771690364602,0.93631557,625.51,624.78,2.095]
[1771690364803,0.93631557,625.5,624.78,2.095]
[1771690365102,1.16980938,625.52,624.78,2.095]
[1771690365103,0.93631557,625.49,624.78,2.095]
[1771690365301,0.93631557,625.48,624.78,2.095]
[1771690365501,0.93631557,625.47,624.78,2.095]
[1771690365700,0.93631557,625.46,624.78,2.095]
[1771690366003,0.93631557,625.45,624.78,2.095]
[1771690366203,0.93631557,625.44,624.78,2.095]
[1771690366404,0.93631557,625.43,624.78,2.095]
[1771690366600,0.93631557,625.42,624.78,2.095]
[1771690366904,0.93631557,625.41,624.78,2.095]
[1771690367100,0.93631557,625.4,624.78,2.095]
[1771690367404,0.93631557,625.39,624.78,2.095]
[1771690367601,0.93631557,625.38,624.78,2.095]
[1771690367804,0.93631557,625.37,624.78,2.095]
[1771690368005,0.93631557,625.36,624.78,2.095]
[1771690368301,0.93631557,625.35,624.78,2.095]
[1771690368504,0.93631557,625.34,624.78,2.095]
[1771690368704,0.93631557,625.33,624.78,2.095]
[1771690368904,0.93631557,625.32,624.78,2.095]
[1771690369101,0.93631557,625.31,624.78,2.095]
[1771690369305,0.93631557,625.3,624.78,2.095]
[1771690369601,0.93631557,625.29,624.78,2.095]
[1771690369800,0.93631557,625.28,624.78,2.095]
[1771690369999,1.16980938,625.48,624.78,2.095]
[1771690374909,2.10742438,625.48,624.78,2.095]
[1771690375106,0.937615,625.47,624.78,2.095]
[1771690375309,0.937615,625.46,624.78,2.095]
[1771690375511,0.937615,625.45,624.78,2.095]
[1771690375708,0.937615,625.44,624.78,2.095]
[1771690375911,0.937615,625.43,624.78,2.095]
[1771690376109,0.937615,625.42,624.78,2.095]
[1771690376312,0.937615,625.41,624.78,2.095]
[1771690376613,0.937615,625.4,624.78,2.095]
[1771690376812,0.937615,625.39,624.78,2.095]
[1771690377109,0.937615,625.38,624.78,2.095]
[1771690377312,0.937615,625.37,624.78,2.095]
[1771690377512,0.27821193,626.02,624.78,2.095]
[1771690377513,1.16980938,625.34,624.78,2.095]
[1771690378008,1.16980938,625.32,624.78,2.095]
[1771690378206,0.937615,625.31,624.78,2.095]
[1771690378509,0.937615,625.3,624.78,2.095]
[1771690378712,0.937615,625.29,624.78,2.095]
[1771690378912,0.937615,625.28,624.78,2.095]
[1771690379213,0.937615,625.27,624.78,2.095]
[1771690379509,0.937615,625.26,624.78,2.095]
[1771690379710,0.937615,625.25,624.78,2.095]
[1771690380012,0.937615,625.24,624.78,2.095]
[1771690380210,0.937615,625.23,624.78,2.095]
[1771690380409,0.937615,625.22,624.78,2.095]
[1771690380612,0.937615,625.21,624.78,2.095]
[1771690380910,0.937615,625.2,624.78,2.095]
[1771690381110,0.937615,625.19,624.78,2.095]
[1771690381313,0.27821193,626.02,624.58,0.27836548]
[1771690381314,0.937615,625.18,624.58,0.27836548]
[1771690381511,0.937615,625.17,624.58,0.27836548]
[1771690381714,1.16980938,625.37,624.58,0.27836548]
[1771690382414,0.93383043,625.36,624.58,0.27836548]
[1771690382611,0.93383043,625.35,624.58,0.27836548]
[1771690382813,0.93383043,625.34,624.58,0.27836548]
[1771690383012,0.93383043,625.33,624.58,0.27836548]
[1771690383211,0.93383043,625.32,624.58,0.27836548]
[1771690383415,0.93383043,625.31,624.58,0.27836548]
[1771690383616,0.93383043,625.3,624.58,0.27836548]
[1771690383913,0.93383043,625.29,624.58,0.27836548]
[1771690384113,0.93383043,625.28,624.58,0.27836548]
[1771690384316,0.93383043,625.27,624.58,0.27836548]
[1771690384516,0.93383043,625.26,624.58,0.27836548]
[1771690384720,0.93383043,625.25,624.58,0.27836548]
[1771690385016,1.16980938,625.45,624.58,0.27836548]
[1771690385514,1.16980938,625.45,624.59,1.596]
[1771690386214,0.9333703,625.44,624.59,1.596]
[1771690386416,0.9333703,625.43,624.59,1.596]
[1771690386617,0.9333703,625.42,624.59,1.596]
[1771690386816,0.9333703,625.41,624.59,1.596]
[1771690387023,0.9333703,625.4,624.59,1.596]
[1771690387218,0.9333703,625.39,624.59,1.596]
[1771690387514,0.9333703,625.38,624.59,1.596]
[1771690387716,0.9333703,625.37,624.59,1.596]
[1771690387912,1.16980938,625.49,624.59,1.596]
[1771690387913,0.9333703,625.36,624.59,1.596]
[1771690388117,0.9333703,625.35,624.59,1.596]
[1771690388318,0.9333703,625.34,624.59,1.596]
[1771690388513,0.9333703,625.33,624.59,1.596]
[1771690388718,0.9333703,625.32,624.59,1.596]
[1771690389020,0.9333703,625.31,624.59,1.596]
[1771690389218,1.16980938,625.52,624.59,1.596]
[1771690389715,0.93338609,625.51,624.59,3.98599795]
[1771690389918,0.93338609,625.5,624.59,3.98599795]
[1771690390119,0.93338609,625.49,624.59,3.98599795]
[1771690390418,0.93338609,625.48,624.61,2.38999795]
[1771690390718,0.93338609,625.47,624.61,2.38999795]
[1771690390918,1.16980938,625.55,624.61,2.38999795]
[1771690390919,0.93338609,625.46,624.61,2.38999795]
[1771690391119,0.93338609,625.45,624.61,2.38999795]
[1771690391415,0.93338609,625.44,624.61,2.38999795]
[1771690391615,0.93338609,625.43,624.61,2.38999795]
[1771690391818,0.93338609,625.42,624.62,2.38999795]
[1771690392018,0.93338609,625.41,624.62,2.38999795]
[1771690392317,0.93338609,625.4,624.62,2.38999795]
[1771690392621,0.93338609,625.39,624.62,2.38999795]
[1771690392818,0.93338609,625.38,624.62,2.38999795]
[1771690393121,0.93338609,625.37,624.62,2.38999795]
[1771690393321,0.93338609,625.36,624.62,2.38999795]
[1771690393617,1.16980938,625.56,624.62,2.38999795]
[1771690396322,1.16980938,625.55,624.62,2.38999795]
[1771690401833,0.93349535,625.54,624.63,2.38999795]
[1771690402033,0.27821193,626.02,624.59,1.596]
[1771690402034,0.93349535,625.53,624.65,2.38999795]
[1771690402328,0.93349535,625.52,624.66,2.38999795]
[1771690402528,0.27821193,626.02,624.65,2.38999795]
[1771690402529,0.93349535,625.51,624.65,2.38999795]
[1771690402729,0.93349535,625.5,624.65,2.38999795]
[1771690403028,0.93349535,625.49,624.65,2.38999795]
[1771690403232,0.93349535,625.48,624.65,2.38999795]
[1771690403534,0.93349535,625.47,624.65,2.38999795]
[1771690403831,0.93349535,625.46,624.65,2.38999795]
[1771690404029,0.93349535,625.45,624.65,2.38999795]
[1771690404232,0.93349535,625.44,624.65,2.38999795]
[1771690404532,0.93349535,625.43,624.65,2.38999795]
[1771690404829,0.93349535,625.42,624.65,2.38999795]
[1771690405028,0.93349535,625.41,624.65,2.38999795]
[1771690405230,0.93349535,625.4,624.65,2.38999795]
[1771690405429,0.93349535,625.39,624.65,2.38999795]
[1771690405634,1.16980938,625.59,624.65,2.38999795]
[1771690406933,1.16980938,625.58,624.64,2.38999795]
[1771690407434,1.16980938,625.55,624.73,1.59559879]
[1771690409734,1.16980938,625.58,624.76,1.59559879]
[1771690410229,1.16980938,625.61,624.78,1.59559879]
[1771690410630,1.16980938,625.62,624.8,1.59559879]
[1771690411229,1.16980938,625.62,624.79,1.59559879]
[1771690413230,1.16980938,625.65,624.82,1.59559879]
[1771690413429,1.16980938,625.69,624.85,1.59559879]
[1771690413830,1.16980938,625.69,624.86,1.59559879]
[1771690414235,1.16980938,625.7,624.86,1.59559879]
[1771690416136,1.16980938,625.7,624.85,1.59559879]
[1771690416334,1.16980938,625.71,624.85,1.59559879]
[1771690419441,1.16980938,625.71,624.84,1.59559879]
[1771690420341,1.16980938,625.72,624.84,1.59559879]
[1771690424441,1.16980938,625.71,624.84,1.59559879]
[1771690426247,1.16980938,625.71,624.85,1.59559879]
[1771690427044,1.16980938,625.66,624.8,1.59559879]
[1771690427347,1.16980938,625.61,624.76,1.59559879]
[1771690427948,1.16980938,625.57,624.72,1.59559879]
[1771690428449,1.16980938,625.56,624.73,1.59559879]
[1771690429446,1.16980938,625.56,624.74,1.59559879]
[1771690431446,1.16980938,625.55,624.74,1.59559879]
[1771690432245,1.16980938,625.55,624.75,1.59559879]
[1771690437359,1.16980938,625.54,624.74,1.59559879]
[1771690437555,1.16980938,625.55,624.74,1.59559879]
[1771690443364,1.16980938,625.55,624.75,1.838]
[1771690449869,1.55598548,625.66,624.75,1.838]
[1771690449870,1.16980938,625.54,624.75,1.838]
[1771690451672,1.16980938,625.5,624.75,1.838]
[1771690455275,1.16980938,625.51,624.75,1.838]
[1771690462382,1.16980938,625.5,624.75,1.838]
[1771690466286,1.16980938,625.49,624.75,1.838]
[1771690467288,1.16980938,625.48,624.75,1.838]
[1771690469389,1.16980938,625.47,624.75,1.838]
[1771690470489,1.16980938,625.36,624.75,1.838]
[1771690470985,1.16980938,625.35,624.75,1.838]
[1771690471185,1.16980938,625.32,624.75,1.838]
[1771690471389,1.16980938,625.31,624.75,1.838]
[1771690472191,1.16980938,625.32,624.75,1.838]
[1771690473192,1.16980938,625.33,624.75,1.838]
[1771690475187,1.16980938,625.34,624.75,1.838]
[1771690476388,1.16980938,625.35,624.75,1.838]
[1771690479088,1.16980938,625.36,624.75,1.838]
[1771690482494,1.16980938,625.36,624.48,1.59559879]
[1771690483295,1.16980938,625.37,624.48,1.59559879]
[1771690484196,1.16980938,625.37,624.47,1.87399434]
[1771690486493,1.16980938,625.37,624.48,1.871]
[1771690488395,1.16980938,625.33,624.48,1.871]
[1771690489198,1.16980938,625.34,624.48,1.871]
[1771690494105,1.16980938,625.33,624.48,1.871]
[1771690500710,1.16980938,625.32,624.48,1.871]
[1771690503809,1.16980938,625.3,624.48,1.871]
[1771690504110,1.16980938,625.28,624.48,1.871]
[1771690506217,1.16980938,625.27,624.48,1.871]
[1771690508715,1.16980938,625.21,624.48,1.871]
[1771690511815,1.16980938,625.22,624.48,1.871]
[1771690512321,1.16980938,625.21,624.48,1.871]
[1771690513122,1.16980938,625.2,624.48,1.871]
[1771690515219,1.16980938,625.19,624.48,1.871]
[1771690522222,1.16980938,625.2,624.48,1.871]
[1771690526226,1.16980938,625.19,624.48,1.871]
[1771690527331,1.16980938,625.17,624.48,1.871]
[1771690531928,1.16980938,625.19,624.48,1.871]
[1771690532130,1.16980938,625.22,624.48,1.871]
[1771690534126,1.16980938,625.21,624.48,1.871]
[1771690535827,1.16980938,625.21,624.44,1.59559879]
[1771690538837,1.16980938,625.21,624.45,1.755]
[1771690539133,1.16980938,625.21,624.45,3.35059879]
[1771690540737,1.16980938,625.22,624.46,1.59559879]
[1771690541737,1.18050711,625.22,624.46,1.59559879]
[1771690542137,1.18050711,625.22,624.47,1.59559879]
[1771690546945,1.18050711,625.22,624.48,1.59559879]
[1771690547147,1.18050711,625.24,624.49,1.59559879]
[1771690547446,1.18050711,625.29,624.54,1.59559879]
[1771690547943,1.18050711,625.35,624.6,1.59559879]
[1771690548147,1.18050711,625.39,624.63,1.59559879]
[1771690548442,1.18050711,625.41,624.64,1.59559879]
[1771690548647,1.18050711,625.45,624.69,1.59559879]
[1771690549145,1.18050711,625.48,624.67,1.59559879]
[1771690549547,1.18050711,625.55,624.74,1.59559879]
[1771690550248,1.18050711,625.57,624.72,1.59559879]
[1771690551145,1.18050711,625.59,624.7,1.59559879]
[1771690552149,1.18050711,625.6,624.69,1.59559879]
[1771690553048,1.18050711,625.6,624.7,2.156]
[1771690553248,1.18050711,625.61,624.7,2.156]
[1771690554148,1.18050711,625.62,624.7,2.156]
[1771690554652,1.18050711,625.63,624.7,2.156]
[1771690555151,1.18050711,625.64,624.7,2.156]
[1771690556148,1.18050711,625.65,624.7,2.156]
[1771690557647,1.18050711,625.66,624.7,2.156]
[1771690558151,1.18050711,625.61,624.7,2.156]
[1771690563355,1.18050711,625.62,624.7,2.156]
[1771690564160,1.18050711,625.63,624.7,2.156]
[1771690564561,1.18050711,625.66,624.7,2.156]
[1771690565457,1.18050711,625.67,624.7,2.156]
[1771690566762,1.18050711,625.73,624.7,2.156]
[1771690567262,1.18050711,625.72,624.7,2.156]
[1771690571166,1.18050711,625.71,624.7,2.156]
[1771690571366,1.55598548,625.83,624.7,2.156]
[1771690571367,1.18050711,625.72,624.7,2.156]
[1771690571865,1.18050711,625.71,624.7,2.156]
[1771690572063,1.18050711,625.72,624.7,2.156]
[1771690572265,1.18050711,625.71,624.7,2.156]
[1771690575769,1.18050711,625.72,624.7,2.156]
[1771690576264,1.18050711,625.71,624.7,2.156]
[1771690580170,1.18050711,625.7,624.7,2.156]
[1771690581771,1.18050711,625.71,624.7,2.156]
[1771690582172,1.18050711,625.7,624.7,2.156]
[1771690583375,1.18050711,625.7,624.7,3.75159879]
[1771690584177,1.18050711,625.69,624.7,3.75159879]
[1771690585173,1.18050711,625.68,624.71,1.59559879]
[1771690585373,1.18050711,625.7,624.73,1.59559879]
[1771690586174,1.18050711,625.69,624.73,1.59559879]
[1771690587181,1.18050711,625.68,624.74,1.59559879]
[1771690587382,1.18050711,625.7,624.76,1.59559879]
[1771690588279,1.18050711,625.7,624.77,1.59559879]